fUST/lending_fUST_20240610
["ID","MTS","AMOUNT","RATE_DAILY","PERIOD"]
[328962447,1718032250744,-500.0,0.00019178,2]
[328962448,1718032250754,-416.20306594,0.00019178,2]
[328962449,1718032250765,-500.0,0.00019178,2]
[328962450,1718032250775,-500.0,0.00019178,2]
[328962451,1718032250785,-500.0,0.00019178,2]
[328962452,1718032250795,-500.0,0.00019178,2]
[328962453,1718032250805,-2561.83,0.00019178,2]
[328962454,1718032250815,-2616.85,0.00019178,2]
[328962456,1718032250826,-2206.35,0.00019178,2]
[328962458,1718032250838,-500.0,0.00019178,2]
[328962460,1718032250848,-500.0,0.00019178,2]
[328962462,1718032250859,-500.0,0.00019178,2]
[328962464,1718032250868,-1576.9210659,0.00019452,15]
[328962466,1718032250879,-500.0,0.00019452,2]
[328962468,1718032250890,-536.13,0.00019452,2]
[328962470,1718032250900,-500.0,0.00019452,2]
[328962485,1718032251041,-500.0,0.00019452,2]
[328962487,1718032251051,-500.0,0.00019452,2]
[328962489,1718032251062,-500.0,0.00019452,2]
[328962491,1718032251072,-500.0,0.00019452,2]
[328962493,1718032251083,-500.0,0.00019452,2]
[328962495,1718032251096,-500.0,0.00019452,2]
[328962497,1718032251106,-500.0,0.00019452,2]
[328962499,1718032251116,-500.0,0.00019452,2]
[328962501,1718032251126,-500.0,0.00019452,2]
[328962503,1718032251137,-500.0,0.00019452,2]
[328962505,1718032251147,-621.88,0.00019452,2]
[328962507,1718032251157,-500.0,0.00019452,2]
[328962509,1718032251168,-500.0,0.00019452,2]
[328962511,1718032251180,-500.0,0.00019452,2]
[328962513,1718032251193,-500.0,0.00019452,2]
[328962515,1718032251203,-500.0,0.00019452,2]
[328962517,1718032251213,-562.95,0.00019452,2]
[328962519,1718032251224,-500.0,0.00019452,2]
[328962521,1718032251234,-508.10192408,0.00019452,2]
[328962523,1718032251244,-500.0,0.00019452,2]
[328962525,1718032251254,-519.59,0.00019452,2]
[328962527,1718032251264,-500.0,0.00019452,2]
[328962529,1718032251274,-500.0,0.00019452,2]
[328962531,1718032251283,-500.0,0.00019452,2]
[328962533,1718032251292,-500.0,0.00019452,2]
[328962535,1718032251302,-500.0,0.00019452,2]
[328962537,1718032251311,-507.92,0.00019452,2]
[328962539,1718032251321,-500.0,0.00019452,2]
[328962541,1718032251331,-500.0,0.00019452,2]
[328962543,1718032251343,-500.0,0.00019452,2]
[328962545,1718032251353,-500.0,0.00019452,2]
[328962547,1718032251363,-500.0,0.00019452,2]
[328962549,1718032251374,-500.0,0.00019452,2]
[328962551,1718032251384,-507.4,0.00019452,2]
[328962553,1718032251394,-500.0,0.00019452,2]
[328962555,1718032251404,-500.0,0.00019452,2]
[328962557,1718032251414,-500.0,0.00019452,2]
[328962559,1718032251425,-500.0,0.00019452,2]
[328962561,1718032251435,-500.0,0.00019452,2]
[328962563,1718032251445,-634.31,0.00019452,2]
[328962565,1718032251456,-500.0,0.00019452,2]
[328962567,1718032251467,-1224.59,0.00019452,2]
[328962569,1718032251477,-500.0,0.00019452,2]
[328962571,1718032251488,-500.0,0.00019452,2]
[328962573,1718032251498,-1242.4,0.00019452,2]
[328962575,1718032251508,-764.69,0.00019452,2]
[328962577,1718032251520,-516.93,0.00019452,2]
[328962579,1718032251530,-500.0,0.00019452,2]
[328962581,1718032251540,-1420.21,0.00019452,2]
[328962583,1718032251551,-500.0,0.00019452,2]
[328962585,1718032251561,-500.0,0.00019452,2]
[328962587,1718032251571,-500.0,0.00019452,2]
[328962589,1718032251582,-428.34,0.00019452,2]
[328962591,1718032251594,-666.01,0.00019452,2]
[328962593,1718032251605,-500.0,0.00019452,2]
[328962595,1718032251616,-500.0,0.00019452,2]
[328962597,1718032251626,-500.0,0.00019452,2]
[328962599,1718032251638,-500.0,0.00019452,2]
[328962601,1718032251648,-500.0,0.00019452,2]
[328962603,1718032251660,-500.0,0.00019452,2]
[328962605,1718032251671,-500.0,0.00019452,2]
[328962607,1718032251681,-2580.18,0.00019452,2]
[328962609,1718032251691,-640.571761,0.00019452,2]
[328962611,1718032251702,-500.0,0.00019452,2]
[328962613,1718032251713,-500.0,0.00019452,2]
[328962615,1718032251723,-500.0,0.00019452,2]
[328962617,1718032251733,-500.0,0.00019452,2]
[328962619,1718032251746,-500.0,0.00019452,2]
[328962621,1718032251757,-500.0,0.00019452,2]
[328962623,1718032251767,-500.0,0.00019452,2]
[328962625,1718032251777,-781.85,0.00019452,2]
[328962627,1718032251787,-500.0,0.00019452,2]
[328962629,1718032251796,-500.0,0.00019452,2]
[328962631,1718032251806,-505.02,0.00019452,2]
[328962633,1718032251816,-500.0,0.00019452,2]
[328962635,1718032251826,-500.0,0.00019452,2]
[328962637,1718032251836,-500.0,0.00019452,2]
[328962639,1718032251847,-1307.57,0.00019452,2]
[328962641,1718032251857,-1269.01,0.00019452,2]
[328962643,1718032251866,-500.0,0.00019452,2]
[328962645,1718032251876,-1174.14,0.00019452,2]
[328962647,1718032251886,-504.56,0.00019452,2]
[328962649,1718032251897,-500.0,0.00019452,2]
[328962651,1718032251907,-500.0,0.00019452,2]
[328962653,1718032251917,-710.88,0.00019452,2]
[328962655,1718032251927,-500.0,0.00019452,2]
[328962657,1718032251937,-500.0,0.00019452,2]
[328962659,1718032251947,-500.0,0.00019452,2]
[328962661,1718032251957,-500.0,0.00019452,2]
[328962663,1718032251968,-500.0,0.00019452,2]
[328962665,1718032251978,-500.0,0.00019452,2]
[328962667,1718032251988,-521.35,0.00019452,2]
[328962669,1718032251998,-2561.83,0.00019452,2]
[328962671,1718032252008,-2616.85,0.00019452,2]
[328962673,1718032252018,-2206.35,0.00019452,2]
[328962675,1718032252028,-500.0,0.00019452,2]
[328962677,1718032252038,-162.85646873,0.00019626,2]
[328962679,1718032252048,-151.6,0.00019659,3]
[328962681,1718032252058,-500.0,0.00019726,2]
[328962683,1718032252068,-500.0,0.00019726,2]
[328962685,1718032252078,-500.0,0.00019726,2]
[328962687,1718032252090,-486.00597211,0.00019726,2]
[328962689,1718032252100,-500.0,0.00019726,2]
[328962691,1718032252110,-500.0,0.00019726,2]
[328962693,1718032252120,-500.0,0.00019726,2]
[328962695,1718032252130,-500.0,0.00019726,2]
[328962697,1718032252141,-500.0,0.00019726,2]
[328962699,1718032252152,-500.0,0.00019726,2]
[328962701,1718032252161,-621.88,0.00019726,2]
[328962703,1718032252172,-500.0,0.00019726,2]
[328962705,1718032252186,-500.0,0.00019726,2]
[328962707,1718032252196,-500.0,0.00019726,2]
[328962709,1718032252205,-500.0,0.00019726,2]
[328962711,1718032252215,-500.0,0.00019726,2]
[328962713,1718032252225,-562.95,0.00019726,2]
[328962715,1718032252235,-500.0,0.00019726,2]
[328962717,1718032252245,-500.0,0.00019726,2]
[328962719,1718032252255,-500.0,0.00019726,2]
[328962721,1718032252265,-500.0,0.00019726,2]
[328962723,1718032252275,-500.0,0.00019726,2]
[328962725,1718032252285,-215.10187374,0.00019726,2]
[328962727,1718032252295,-507.92,0.00019726,2]
[328962729,1718032252305,-500.0,0.00019726,2]
[328962731,1718032252315,-500.0,0.00019726,2]
[328962733,1718032252325,-500.0,0.00019726,2]
[328962735,1718032252337,-500.0,0.00019726,2]
[328962737,1718032252347,-500.0,0.00019726,2]
[328962739,1718032252357,-507.4,0.00019726,2]
[328962741,1718032252367,-500.0,0.00019726,2]
[328962743,1718032252377,-500.0,0.00019726,2]
[328962745,1718032252387,-634.31,0.00019726,2]
[328962747,1718032252397,-1224.59,0.00019726,2]
[328962749,1718032252406,-500.0,0.00019726,2]
[328962751,1718032252417,-500.0,0.00019726,2]
[328962753,1718032252427,-1242.4,0.00019726,2]
[328962755,1718032252438,-764.69,0.00019726,2]
[328962757,1718032252448,-516.93,0.00019726,2]
[328962759,1718032252458,-500.0,0.00019726,2]
[328962761,1718032252468,-1420.21,0.00019726,2]
[328962763,1718032252478,-500.0,0.00019726,2]
[328962765,1718032252488,-500.0,0.00019726,2]
[328962767,1718032252498,-666.01,0.00019726,2]
[328962769,1718032252508,-500.0,0.00019726,2]
[328962771,1718032252518,-500.0,0.00019726,2]
[328962773,1718032252529,-500.0,0.00019726,2]
[328962775,1718032252540,-500.0,0.00019726,2]
[328962777,1718032252550,-500.0,0.00019726,2]
[328962779,1718032252560,-296.12,0.00019726,2]
[328962781,1718032252571,-2580.18,0.00019726,2]
[328962783,1718032252581,-500.0,0.00019726,2]
[328962785,1718032252592,-500.0,0.00019726,2]
[328962787,1718032252602,-500.0,0.00019726,2]
[328962789,1718032252612,-781.85,0.00019726,2]
[328962791,1718032252622,-500.0,0.00019726,2]
[328962793,1718032252632,-500.0,0.00019726,2]
[328962795,1718032252641,-505.02,0.00019726,2]
[328962797,1718032252651,-500.0,0.00019726,2]
[328962799,1718032252664,-500.0,0.00019726,2]
[328962801,1718032252674,-500.0,0.00019726,2]
[328962803,1718032252684,-1307.57,0.00019726,2]
[328962805,1718032252694,-1269.01,0.00019726,2]
[328962807,1718032252706,-500.0,0.00019726,2]
[328962809,1718032252716,-1174.14,0.00019726,2]
[328962811,1718032252726,-504.56,0.00019726,2]
[328962813,1718032252739,-500.0,0.00019726,2]
[328962815,1718032252750,-500.0,0.00019726,2]
[328962817,1718032252760,-710.88,0.00019726,2]
[328962819,1718032252770,-500.0,0.00019726,2]
[328962821,1718032252780,-500.0,0.00019726,2]
[328962822,1718032252791,-500.0,0.00019726,2]
[328962823,1718032252802,-500.0,0.00019726,2]
[328962824,1718032252812,-2561.83,0.00019726,2]
[328962825,1718032252822,-2616.85,0.00019726,2]
[328962826,1718032252832,-2206.35,0.00019726,2]
[328962827,1718032252844,-3600.00965524,0.0002,2]
[328962828,1718032252854,-1115.98840214,0.0002,2]
[328962829,1718032252864,-500.0,0.0002,2]
[328962830,1718032252875,-500.0,0.0002,2]
[328962832,1718032252885,-500.0,0.0002,2]
[328962834,1718032252895,-500.0,0.0002,2]
[328962836,1718032252906,-500.0,0.0002,2]
[328962838,1718032252916,-538.62,0.0002,2]
[328962840,1718032252926,-621.88,0.0002,2]
[328962842,1718032252936,-500.0,0.0002,2]
[328962844,1718032252946,-500.0,0.0002,2]
[328962845,1718032252956,-500.0,0.0002,2]
[328962847,1718032252966,-562.95,0.0002,2]
[328962849,1718032252976,-500.0,0.0002,2]
[328962851,1718032252987,-29257.23152836,0.0002,2]
[328962853,1718032252997,-500.0,0.0002,2]
[328962856,1718032253007,-507.92,0.0002,2]
[328962858,1718032253017,-500.0,0.0002,2]
[328962860,1718032253027,-500.0,0.0002,2]
[328962862,1718032253037,-500.0,0.0002,2]
[328962864,1718032253047,-500.0,0.0002,2]
[328962866,1718032253058,-469.07975444,0.0002,2]
[328962868,1718032253068,-507.4,0.0002,2]
[328962870,1718032253078,-500.0,0.0002,2]
[328962872,1718032253088,-634.31,0.0002,2]
[328962874,1718032253098,-1224.59,0.0002,2]
[328962876,1718032253108,-500.0,0.0002,2]
[328962878,1718032253118,-1242.4,0.0002,2]
[328962880,1718032253129,-764.69,0.0002,2]
[328962882,1718032253139,-516.93,0.0002,2]
[328962884,1718032253149,-500.0,0.0002,2]
[328962885,1718032253159,-1420.21,0.0002,2]
[328962887,1718032253169,-500.0,0.0002,2]
[328962889,1718032253182,-500.0,0.0002,2]
[328962891,1718032253193,-666.01,0.0002,2]
[328962893,1718032253203,-500.0,0.0002,2]
[328962895,1718032253212,-222.1,0.0002,2]
[328962897,1718032253222,-194.47381427,0.0002,2]
[328962899,1718032253232,-2580.18,0.0002,2]
[328962901,1718032253242,-500.0,0.0002,2]
[328962903,1718032253252,-500.0,0.0002,2]
[328962905,1718032253261,-781.85,0.0002,2]
[328962907,1718032253271,-500.0,0.0002,2]
[328962909,1718032253282,-505.02,0.0002,2]
[328962911,1718032253292,-500.0,0.0002,2]
[328962913,1718032253302,-500.0,0.0002,2]
[328962915,1718032253312,-1307.57,0.0002,2]
[328962917,1718032253323,-1269.01,0.0002,2]
[328962919,1718032253333,-500.0,0.0002,2]
[328962921,1718032253343,-1174.14,0.0002,2]
[328962923,1718032253354,-504.56,0.0002,2]
[328962925,1718032253364,-500.0,0.0002,2]
[328962927,1718032253374,-710.88,0.0002,2]
[328962929,1718032253385,-500.0,0.0002,2]
[328962931,1718032253395,-2561.83,0.0002,2]
[328962933,1718032253405,-1046.07948392,0.0002,2]
[328962946,1718032253532,-500.0,0.00019452,2]
[328962948,1718032253542,-32.69703424,0.00019726,2]
[328962951,1718032253555,-467.30296576,0.00019726,2]
[328962953,1718032253565,-1570.77051608,0.0002,2]
[328962955,1718032253575,-769.41444026,0.0002,2]
[328962957,1718032253589,-1436.93555974,0.0002,2]
[328962959,1718032253600,-24463.1101989,0.00020173,3]
[328962961,1718032253610,-151.0,0.00020173,2]
[328962963,1718032253621,-151.0,0.00020173,2]
[328962965,1718032253632,-151.0,0.00020173,2]
[328962967,1718032253642,-151.0,0.00020173,2]
[328962969,1718032253652,-153.475458,0.00020173,2]
[328962971,1718032253666,-177.942488,0.00020173,2]
[328962973,1718032253677,-500.0,0.00020273,2]
[328962975,1718032253687,-500.0,0.00020273,2]
[328962976,1718032253697,-500.0,0.00020273,2]
[328962978,1718032253707,-500.0,0.00020273,2]
[328962980,1718032253717,-500.0,0.00020273,2]
[328962982,1718032253728,-621.88,0.00020273,2]
[328962984,1718032253738,-500.0,0.00020273,2]
[328962986,1718032253750,-500.0,0.00020273,2]
[328962988,1718032253762,-248.68292413,0.00020273,2]
[328962990,1718032253772,-562.95,0.00020273,2]
[328962992,1718032253783,-500.0,0.00020273,2]
[328962994,1718032253794,-500.0,0.00020273,2]
[328962996,1718032253804,-507.92,0.00020273,2]
[328962998,1718032253814,-500.0,0.00020273,2]
[328963000,1718032253824,-500.0,0.00020273,2]
[328963002,1718032253834,-507.4,0.00020273,2]
[328963004,1718032253846,-500.0,0.00020273,2]
[328963006,1718032253856,-634.31,0.00020273,2]
[328963008,1718032253867,-1224.59,0.00020273,2]
[328963010,1718032253877,-1242.4,0.00020273,2]
[328963012,1718032253887,-764.69,0.00020273,2]
[328963014,1718032253897,-516.93,0.00020273,2]
[328963017,1718032253907,-500.0,0.00020273,2]
[328963018,1718032253917,-1420.21,0.00020273,2]
[328963020,1718032253927,-500.0,0.00020273,2]
[328963022,1718032253937,-666.01,0.00020273,2]
[328963024,1718032253947,-500.0,0.00020273,2]
[328963026,1718032253958,-1000.0,0.00020273,2]
[328963028,1718032253968,-1000.0,0.00020273,2]
[328963030,1718032253978,-1000.0,0.00020273,2]
[328963033,1718032253988,-1000.0,0.00020273,2]
[328963034,1718032253998,-1000.0,0.00020273,2]
[328963037,1718032254008,-1000.0,0.00020273,2]
[328963038,1718032254019,-1000.0,0.00020273,2]
[328963041,1718032254029,-1000.0,0.00020273,2]
[328963043,1718032254040,-1000.0,0.00020273,2]
[328963044,1718032254050,-1000.0,0.00020273,2]
[328963046,1718032254060,-1000.0,0.00020273,2]
[328963049,1718032254070,-635.400181,0.00020273,2]
[328963051,1718032254082,-2580.18,0.00020273,2]
[328963053,1718032254093,-151.0,0.00020273,2]
[328963054,1718032254104,-151.0,0.00020273,2]
[328963056,1718032254114,-500.0,0.00020273,2]
[328963058,1718032254124,-151.0,0.00020273,2]
[328963060,1718032254135,-388.405105,0.00020273,2]
[328963062,1718032254146,-500.0,0.00020273,2]
[328963064,1718032254158,-151.0,0.00020273,2]
[328963066,1718032254169,-388.405105,0.00020273,2]
[328963068,1718032254183,-781.85,0.00020273,2]
[328963070,1718032254196,-505.02,0.00020273,2]
[328963084,1718032254326,-500.0,0.00020273,2]
[328963085,1718032254337,-151.0,0.00020273,2]
[328963087,1718032254349,-500.0,0.00020273,2]
[328963089,1718032254361,-151.0,0.00020273,2]
[328963090,1718032254376,-1307.57,0.00020273,2]
[328963092,1718032254392,-1269.01,0.00020273,2]
[328963093,1718032254406,-500.0,0.00020273,2]
[328963095,1718032254424,-1174.14,0.00020273,2]
[328963097,1718032254440,-504.56,0.00020273,2]
[328963099,1718032254454,-710.88,0.00020273,2]
[328963101,1718032254467,-500.0,0.00020273,2]
[328963103,1718032254479,-2561.83,0.00020273,2]
[328963105,1718032254490,-2616.85,0.00020273,2]
[328963107,1718032254503,-2206.35,0.00020273,2]
[328963109,1718032254514,-151.6,0.00020302,3]
[328963111,1718032254526,-153.0,0.00020365,2]
[328963113,1718032254536,-500.0,0.00020547,2]
[328963115,1718032254547,-500.0,0.00020547,2]
[328963117,1718032254558,-500.0,0.00020547,2]
[328963119,1718032254569,-500.0,0.00020547,2]
[328963120,1718032254579,-500.0,0.00020547,2]
[328963123,1718032254590,-621.88,0.00020547,2]
[328963124,1718032254602,-500.0,0.00020547,2]
[328963126,1718032254612,-412.7,0.00020547,2]
[328963128,1718032254622,-562.95,0.00020547,2]
[328963130,1718032254632,-232.6,0.00020547,2]
[328963133,1718032254643,-500.0,0.00020547,2]
[328963134,1718032254653,-507.92,0.00020547,2]
[328963137,1718032254666,-500.0,0.00020547,2]
[328963138,1718032254676,-500.0,0.00020547,2]
[328963140,1718032254686,-151.0,0.00020547,2]
[328963142,1718032254696,-507.4,0.00020547,2]
[328963144,1718032254707,-226.257362,0.00020547,2]
[328963146,1718032254717,-500.0,0.00020547,2]
[328963148,1718032254727,-151.0,0.00020547,2]
[328963151,1718032254737,-634.31,0.00020547,2]
[328963153,1718032254750,-151.0,0.00020547,2]
[328963155,1718032254760,-151.0,0.00020547,2]
[328963156,1718032254770,-151.0,0.00020547,2]
[328963158,1718032254779,-1224.59,0.00020547,2]
[328963160,1718032254790,-154.338792,0.00020547,2]
[328963162,1718032254800,-151.0,0.00020547,2]
[328963163,1718032254810,-1242.4,0.00020547,2]
[328963164,1718032254819,-764.69,0.00020547,2]
[328963165,1718032254829,-516.93,0.00020547,2]
[328963166,1718032254840,-500.0,0.00020547,2]
[328963167,1718032254850,-1420.21,0.00020547,2]
[328963168,1718032254860,-500.0,0.00020547,2]
[328963169,1718032254870,-666.01,0.00020547,2]
[328963170,1718032254880,-500.0,0.00020547,2]
[328963171,1718032254890,-2580.18,0.00020547,2]
[328963172,1718032254900,-500.0,0.00020547,2]
[328963174,1718032254909,-500.0,0.00020547,2]
[328963176,1718032254919,-781.85,0.00020547,2]
[328963178,1718032254929,-505.02,0.00020547,2]
[328963180,1718032254939,-500.0,0.00020547,2]
[328963182,1718032254949,-500.0,0.00020547,2]
[328963184,1718032254959,-1307.57,0.00020547,2]
[328963186,1718032254969,-1269.01,0.00020547,2]
[328963188,1718032254979,-500.0,0.00020547,2]
[328963190,1718032254989,-1174.14,0.00020547,2]
[328963192,1718032254999,-504.56,0.00020547,2]
[328963194,1718032255011,-151.0,0.00020547,2]
[328963196,1718032255021,-710.88,0.00020547,2]
[328963198,1718032255031,-151.0,0.00020547,2]
[328963200,1718032255041,-151.0,0.00020547,2]
[328963202,1718032255052,-500.0,0.00020547,2]
[328963204,1718032255062,-151.0,0.00020547,2]
[328963206,1718032255072,-2561.83,0.00020547,2]
[328963208,1718032255083,-2616.85,0.00020547,2]
[328963210,1718032255095,-2206.35,0.00020547,2]
[328963212,1718032255105,-177.942488,0.00020547,2]
[328963214,1718032255116,-151.0,0.00020548,2]
[328963216,1718032255127,-500.0,0.00020821,2]
[328963219,1718032255137,-500.0,0.00020821,2]
[328963220,1718032255148,-500.0,0.00020821,2]
[328963222,1718032255158,-500.0,0.00020821,2]
[328963224,1718032255168,-500.0,0.00020821,2]
[328963226,1718032255179,-621.88,0.00020821,2]
[328963228,1718032255189,-280.56600057,0.00020821,2]
[328963230,1718032255199,-562.95,0.00020821,2]
[328963232,1718032255210,-500.0,0.00020821,2]
[328963234,1718032255220,-507.92,0.00020821,2]
[328963236,1718032255230,-345.36,0.00020821,2]
[328963238,1718032255240,-157.961847,0.00020821,2]
[328963240,1718032255250,-500.0,0.00020821,2]
[328963242,1718032255260,-507.4,0.00020821,2]
[328963244,1718032255271,-500.0,0.00020821,2]
[328963246,1718032255281,-634.31,0.00020821,2]
[328963248,1718032255291,-1224.59,0.00020821,2]
[328963250,1718032255301,-1242.4,0.00020821,2]
[328963252,1718032255311,-764.69,0.00020821,2]
[328963254,1718032255323,-516.93,0.00020821,2]
[328963256,1718032255334,-500.0,0.00020821,2]
[328963258,1718032255346,-1420.21,0.00020821,2]
[328963260,1718032255357,-500.0,0.00020821,2]
[328963262,1718032255367,-666.01,0.00020821,2]
[328963263,1718032255379,-500.0,0.00020821,2]
[328963265,1718032255389,-2580.18,0.00020821,2]
[328963267,1718032255399,-624.81004375,0.00020821,2]
[328963269,1718032255409,-500.0,0.00020821,2]
[328963271,1718032255419,-781.85,0.00020821,2]
[328963274,1718032255436,-505.02,0.00020821,2]
[328963276,1718032255447,-500.0,0.00020821,2]
[328963277,1718032255457,-500.0,0.00020821,2]
[328963279,1718032255468,-1307.57,0.00020821,2]
[328963281,1718032255480,-1269.01,0.00020821,2]
[328963283,1718032255491,-500.0,0.00020821,2]
[328963285,1718032255502,-1174.14,0.00020821,2]
[328963287,1718032255512,-504.56,0.00020821,2]
[328963289,1718032255523,-710.88,0.00020821,2]
[328963291,1718032255533,-500.0,0.00020821,2]
[328963293,1718032255543,-2561.83,0.00020821,2]
[328963295,1718032255553,-2616.85,0.00020821,2]
[328963297,1718032255563,-2206.35,0.00020821,2]
[328963299,1718032255575,-420.0,0.0002089,2]
[328963301,1718032255585,-151.6,0.00020944,5]
[328963303,1718032255598,-2835.35794096,0.00021,2]
[328963924,1718032262845,10000.0,0.00016,2]
[328964167,1718032281640,10000.0,0.00016,2]
[328964168,1718032305186,8552.47,0.00016,2]
[328964170,1718032427039,15942.62,0.00025,120]
[328964171,1718032427063,4500.0,0.00025,120]
[328964172,1718032427087,90000.0,0.00025,120]
[328964173,1718032427138,889557.38,0.00025,120]
[328964174,1718032693272,673.98365911,9.999e-05,2]
[328964175,1718032803817,1518.16131932,9.999e-05,2]
[328964177,1718033058729,417.48241542,0.00013533,2]
[328964178,1718033067064,162.27515912,0.00013533,2]
[328964179,1718033067104,1120.22271121,0.00013533,2]
[328964251,1718033433205,-199.2913163,0.00017078,2]
[328964253,1718033433217,-250.0,0.00017266,2]
[328964255,1718033433227,-254.4723272,0.00017561,2]
[328964259,1718033433263,-2745.5276728,0.00017561,2]
[328964261,1718033433274,-300.0,0.00017702,2]
[328964263,1718033433285,-300.0,0.00017702,2]
[328964265,1718033433295,-24900.0,0.00017703,2]
[328964267,1718033433306,-261.79615674,0.00017943,2]
[328964269,1718033433316,-310.02790252,0.00018043,2]
[328964271,1718033433328,-888.54812612,0.00018043,2]
[328964273,1718033433339,-2682.36568579,0.00018043,2]
[328964276,1718033433352,-552.89399516,0.00018044,2]
[328964278,1718033433363,-15096.51540386,0.00018898,2]
[328964280,1718033433373,-160.9,0.00018979,3]
[328964282,1718033433384,-175.09902262,0.00019078,2]
[328964284,1718033433394,-187.78108932,0.00019176,2]
[328964286,1718033433405,-164.59629886,0.00019176,2]
[328964287,1718033433415,-158.99250424,0.00019176,2]
[328964289,1718033433426,-1500.82055846,0.00019176,2]
[328964292,1718033433437,-500.0,0.00019178,2]
[328964294,1718033433447,-500.0,0.00019178,2]
[328964295,1718033433457,-521.35,0.00019178,2]
[328964297,1718033433468,-500.0,0.00019178,2]
[328964299,1718033433478,-500.0,0.00019178,2]
[328964302,1718033433489,-500.0,0.00019178,2]
[328964303,1718033433500,-500.0,0.00019178,2]
[328964305,1718033433510,-551.2,0.00019178,2]
[328964307,1718033433520,-500.0,0.00019178,2]
[328964308,1718033433530,-500.0,0.00019178,2]
[328964309,1718033433542,-500.0,0.00019178,2]
[328964310,1718033433552,-500.0,0.00019178,2]
[328964311,1718033433564,-500.0,0.00019178,2]
[328964312,1718033433574,-500.0,0.00019178,2]
[328964313,1718033433584,-500.0,0.00019178,2]
[328964314,1718033433600,-519.59,0.00019178,2]
[328964315,1718033433611,-500.0,0.00019178,2]
[328964316,1718033433621,-500.0,0.00019178,2]
[328964317,1718033433631,-319.71942705,0.00019178,2]
[328964318,1718033433645,-180.28057295,0.00019178,2]
[328964319,1718033433655,-236.39273435,0.00019178,2]
[328964320,1718033433668,-263.60726565,0.00019178,2]
[328964321,1718033433680,-500.0,0.00019178,2]
[328964322,1718033433691,-45.31942705,0.00019178,2]
[328964501,1718033440991,-454.68057295,0.00019178,2]
[328964504,1718033441002,-500.0,0.00019178,2]
[328964507,1718033441025,-500.0,0.00019178,2]
[328964509,1718033441037,-500.0,0.00019178,2]
[328964511,1718033441049,-146.94714587,0.00019178,2]
[328964513,1718033441064,-353.05285413,0.00019178,2]
[328964515,1718033441076,-500.0,0.00019178,2]
[328964517,1718033441088,-500.0,0.00019178,2]
[328964519,1718033441104,-247.73006924,0.00019178,2]
[328964521,1718033441117,-500.0,0.00019178,2]
[328964523,1718033441129,-500.0,0.00019178,2]
[328964525,1718033441141,-518.79,0.00019178,2]
[328964527,1718033441152,-500.0,0.00019178,2]
[328964529,1718033441164,-500.0,0.00019178,2]
[328964532,1718033441178,-629.86,0.00019178,2]
[328964534,1718033441191,-500.0,0.00019178,2]
[328964536,1718033441203,-500.0,0.00019178,2]
[328964538,1718033441214,-500.0,0.00019178,2]